bitfinex/quotes_ETHUSD_20250324
["timestamp","ask_amount","ask_price","bid_price","bid_amount"]
[1742800925022,4.687,2073.7,2073.5,0.8005]
[1742800925227,5.615,2074.1,2073.6,4.82242]
[1742800925416,9.50884,2073.9,2073.5,5.62321]
[1742800925621,4.82206,2073.8,2073.7,0.17805902]
[1742800925831,4.82206,2073.8,2073.5,0.8005]
[1742800926032,4.82206,2073.8,2073.7,0.17805902]
[1742800926230,4.82206,2073.8,2073.5,0.8005]
[1742800926541,4.82206,2073.8,2073.3,6.22945748]
[1742800926542,4.82241,2073.7,2073.3,6.22945748]
[1742800926742,4.82241,2073.7,2073.3,11.05255748]
[1742800927043,4.82206,2073.8,2073.4,6.22824575]
[1742800928223,9.64431,2073.8,2073.4,6.22824575]
[1742800928747,4.82241,2073.7,2073.4,1.40525575]
[1742800928946,4.687,2073.9,2072.4,0.50411659]
[1742800928947,4.82415,2072.9,2072.4,0.50411659]
[1742800929146,4.687,2073.0,2072.7,4.82444]
[1742800929318,4.687,2073.1,2072.8,0.8261]
[1742800929626,9.51078,2073.1,2072.8,0.8261]
[1742800929827,4.687,2073.1,2072.8,1.391194]
[1742800930023,4.82346,2073.2,2072.8,6.215524]
[1742800930249,4.82307,2073.4,2072.9,0.8261]
[1742800930444,14.33325,2073.4,2072.9,5.65005]
[1742800930621,14.33325,2073.4,2072.9,11.5780444]
[1742800931456,4.82323,2073.3,2072.9,6.7540044]
[1742800932025,4.82323,2073.3,2072.9,11.5779744]
[1742800933025,4.82323,2073.3,2072.9,6.7540044]
[1742800933224,4.82323,2073.3,2072.9,11.5780444]
[1742800933634,4.82323,2073.3,2072.9,6.7540044]
[1742800935123,9.64722,2073.2,2072.9,1.9300544]
[1742800935472,5.63474,2073.2,2072.8,5.389274]
[1742800935632,5.63474,2073.2,2072.8,4.82418]
[1742800936136,4.82396,2073.0,2072.7,0.82]
[1742800936532,4.82428,2072.9,2072.7,0.82]
[1742800936856,5.63469,2073.2,2072.4,4.82514]
[1742800936857,4.687,2073.0,2072.4,5.64521]
[1742800937156,4.82433,2072.9,2072.5,4.82508]
[1742800937328,4.82433,2072.9,2072.5,9.64998]
[1742800937656,4.82433,2072.9,2072.5,4.8249]
[1742800937853,9.64865,2072.9,2072.5,4.8249]
[1742800938049,4.82432,2072.9,2072.5,4.8249]
[1742800938251,9.64867,2072.9,2072.5,4.8249]
[1742800938546,11.16770273,2072.9,2072.5,4.8249]
[1742800938751,4.82439,2072.8,2072.5,4.8249]
[1742800939054,4.82466,2072.7,2072.4,0.82]
[1742800939244,6.34342273,2072.9,2072.2,0.82]
[1742800939424,9.51139,2072.9,2072.5,5.64506]
[1742800939623,9.5113,2072.9,2072.5,5.64506]
[1742800939956,9.51127,2072.9,2072.5,5.64506]
[1742800940143,14.33554,2072.9,2072.5,5.64506]
[1742800940331,9.51127,2072.9,2072.5,5.64506]
[1742800940532,9.51127,2072.9,2072.3,4.82533]
[1742800940533,4.82446,2072.8,2072.4,4.82521]
[1742800940729,4.82446,2072.8,2072.4,9.65036]
[1742800940929,4.82446,2072.8,2072.5,4.98350847]
[1742800941357,9.51122,2072.9,2072.5,4.98350847]
[1742800941525,4.687,2072.9,2072.6,0.8251]
[1742800941731,4.687,2072.9,2072.6,5.64985]
[1742800941931,9.51119,2072.9,2072.7,0.15844847]
[1742800943161,4.687,2072.9,2072.7,0.15844847]
[1742800943363,9.51121,2072.9,2072.7,0.15844847]
[1742800943863,4.687,2072.9,2072.7,0.15844847]
[1742800944454,9.55963298,2072.9,2072.7,0.15844847]
[1742800944662,11.025885,2072.9,2072.7,0.15844847]
[1742800944835,4.82449,2072.8,2072.4,5.65032]
[1742800946583,4.82478,2072.7,2072.4,0.8251]
[1742800946737,4.82474,2072.7,2072.4,0.8251]
[1742800947287,4.82474,2072.7,2072.2,5.65078]
[1742800947470,4.82474,2072.7,2072.3,4.82548]
[1742800948980,4.82473,2072.7,2072.3,4.82548]
[1742800949664,5.65623,2072.7,2072.3,4.82548]
[1742800949874,10.48107,2072.7,2072.3,4.82548]
[1742800950173,5.65623,2072.7,2072.3,4.82548]
[1742800950773,4.82487,2072.6,2072.2,5.65085]
[1742800950982,5.65623,2072.7,2072.2,10.47642]
[1742800951277,4.82487,2072.6,2072.2,5.65067]
[1742800952973,4.82487,2072.6,2072.2,5.75067]
[1742800953477,9.64994,2072.6,2072.2,5.75067]
[1742800953695,4.82487,2072.6,2072.2,5.75067]
[1742800954490,5.65612,2072.7,2072.3,4.82553]
[1742800954681,10.48089,2072.7,2072.3,5.54942509]
[1742800954852,4.82486,2072.6,2072.3,4.82546]
[1742800955047,4.82486,2072.6,2072.2,5.75082]
[1742800955253,4.82486,2072.6,2072.2,0.9251]
[1742800955472,9.64992,2072.6,2072.2,5.75087]
[1742800955753,4.82486,2072.6,2072.2,5.75087]
[1742800956063,9.64994,2072.6,2072.3,0.15936469]
[1742800956266,4.82486,2072.6,2072.2,5.75087]
[1742800956476,4.82486,2072.6,2072.4,0.15936469]
[1742800956950,4.82486,2072.6,2072.5,0.15955758]
[1742800957685,4.82486,2072.6,2072.2,5.75087]
[1742800957986,4.82486,2072.6,2072.5,0.15955758]
[1742800958164,4.82486,2072.6,2072.2,5.75087]
[1742800958364,4.82486,2072.6,2072.3,0.15955758]
[1742800958567,4.82486,2072.6,2072.2,5.75087]
[1742800959000,4.82486,2072.6,2072.3,0.15955758]
[1742800959301,4.82486,2072.6,2072.2,5.75087]
[1742800959610,10.48087,2072.7,2072.2,5.7508]
[1742800959770,10.48087,2072.7,2072.3,4.98508758]
[1742800960499,4.82485,2072.6,2072.3,0.15955758]
[1742800960856,4.82485,2072.6,2072.2,5.7508]
[1742800961354,4.82485,2072.6,2072.3,0.15955758]
[1742800961551,4.82485,2072.6,2072.2,5.7508]
[1742800961783,4.82485,2072.6,2072.3,0.15955758]
[1742800961985,4.82485,2072.6,2072.2,5.7508]
[1742800962204,4.82485,2072.6,2072.3,0.15955758]
[1742800962497,4.82485,2072.6,2072.2,5.7508]
[1742800962693,4.82485,2072.6,2072.4,0.15955758]
[1742800962897,4.82485,2072.6,2072.2,5.7508]
[1742800963080,10.48097,2072.7,2072.5,0.15955758]
[1742800963282,0.8315,2072.7,2072.2,0.9251]
[1742800963498,4.688,2072.8,2072.6,0.96345758]
[1742800963657,3.0,2073.0,2072.6,0.8039]
[1742800963862,7.82394,2073.0,2072.7,0.15955758]
[1742800965984,9.76764639,2073.0,2072.7,0.15955758]
[1742800969716,4.687,2073.0,2072.7,0.15955758]
[1742800970020,4.687,2073.0,2072.7,4.98407758]
[1742800970188,9.51096,2073.0,2072.7,0.15955758]
[1742800970697,4.687,2073.0,2072.7,4.98413758]
[1742800971292,5.59661,2073.1,2072.7,9.80865758]
[1742800971500,10.28361,2073.1,2072.7,9.80865758]
[1742800972111,10.28361,2073.1,2072.7,4.98407758]
[1742800973211,5.4598,2073.1,2072.7,0.15955758]
[1742800973412,4.82409,2073.0,2072.7,0.15955758]
[1742800979332,9.51076,2073.1,2072.7,4.98407758]
[1742800979617,3.0,2073.2,2072.9,4.82403]
[1742800979849,4.687,2073.1,2072.9,5.61543]
[1742800980193,4.687,2073.1,2073.0,0.15830399]
[1742800980892,13.30363,2073.3,2073.0,4.98217399]
[1742800981094,6.59583587,2073.5,2073.0,4.98205399]
[1742800981403,3.0,2073.4,2073.1,4.82355]
[1742800981607,3.0,2073.4,2073.2,0.15613445]
[1742800981990,3.0,2073.4,2073.2,4.97952445]
[1742800982411,26.675,2074.4,2073.3,0.7914]
[1742800982733,4.82239,2073.7,2073.3,5.61462]
[1742800982911,5.61704,2073.6,2073.1,5.61504]
[1742800983231,4.87121298,2073.5,2073.1,6.46008989]
[1742800983434,4.87121298,2073.5,2073.2,0.15570066]
[1742800983595,4.82284,2073.5,2073.2,0.15570066]
[1742800983801,10.30298,2073.6,2073.2,4.97915066]
[1742800984030,5.4804,2073.6,2073.3,4.82322]
[1742800984402,5.4804,2073.6,2073.4,0.15570066]
[1742800984602,10.30303,2073.6,2073.4,0.15570066]
[1742800984918,0.04837298,2073.5,2073.2,4.82345]
[1742800985546,10.30303,2073.6,2073.2,4.82345]
[1742800985843,5.4804,2073.6,2073.2,4.82333]
[1742800986003,10.30307,2073.6,2073.3,0.15570066]
[1742800988441,15.1258,2073.6,2073.3,0.15570066]
[1742800988745,4.87116298,2073.5,2073.3,0.15570066]
[1742800988946,4.82299,2073.4,2073.3,0.15570066]
[1742800989146,4.82299,2073.4,2073.0,4.82371]
[1742800989333,0.08705683,2073.3,2073.0,5.870023]
[1742800989802,0.08705683,2073.3,2073.1,4.82369]
[1742800990160,0.08705683,2073.3,2073.0,5.870023]
[1742800990503,0.08705683,2073.3,2073.0,1.046313]
[1742800990840,0.08705683,2073.3,2073.0,5.870093]
[1742800991046,0.08705683,2073.3,2073.1,0.6685293]
[1742800991763,0.08705683,2073.3,2073.1,10.3157493]
[1742800991934,0.08705683,2073.3,2073.2,0.8152]
[1742800992114,0.08705683,2073.3,2073.2,5.63866]
[1742800993042,4.686,2073.6,2073.2,5.63866]
[1742800993256,4.686,2073.6,2073.2,10.46212]
[1742800993448,7.685,2073.8,2073.4,4.82278]
[1742800994055,12.50715,2073.8,2073.4,4.82278]
[1742800994252,5.65519,2073.7,2073.2,1.92827493]
[1742800994425,7.82264,2073.6,2073.2,5.63853]
[1742800994628,4.8228,2073.5,2073.2,0.8152]
[1742800994865,7.82264,2073.6,2073.2,5.63865]
[1742800995048,12.64528,2073.6,2073.2,5.63865]
[1742800995217,7.82264,2073.6,2073.2,4.82345]
[1742800995422,4.82278,2073.5,2073.1,4.82358]
[1742800995644,4.82278,2073.5,2073.1,9.64709]
[1742800995955,9.62168004,2073.6,2073.2,4.82343]
[1742800996460,7.82257,2073.6,2073.2,4.82343]
[1742800996751,5.6552,2073.7,2073.3,4.82321]
[1742800997254,3.0,2073.7,2073.4,4.82286]
[1742800999459,26.675,2074.4,2073.6,4.82253]
[1742800999627,5.5169,2074.3,2074.1,4.82127]
[1742800999827,0.8329,2074.3,2074.1,4.82127]
[1742801000028,4.684,2074.6,2074.5,4.82043]
[1742801000257,7.684,2074.6,2074.5,4.82043]
[1742801000556,9.50434,2074.6,2074.2,4.8209]
[1742801001058,4.8205,2074.5,2074.3,0.14972541]
[1742801001227,4.8205,2074.5,2074.1,5.63654]
[1742801001429,3.0,2074.5,2074.2,0.14972541]
[1742801001745,4.684,2074.6,2074.3,4.82078]
[1742801002058,4.683,2074.6,2074.3,4.82086]
[1742801002231,4.683,2074.6,2074.4,0.14972541]
[1742801002427,3.8329,2074.7,2074.4,0.14972541]
[1742801002761,13.3359,2074.7,2074.4,0.14972541]
[1742801003061,10.3359,2074.7,2074.4,0.14972541]
[1742801003658,3.8329,2074.7,2074.4,0.14972541]
[1742801003859,7.683,2074.7,2074.4,4.97025541]
[1742801004160,3.0,2074.7,2074.5,4.82031]
[1742801004459,3.0,2074.7,2074.6,0.14235725]
[1742801004654,7.81997,2074.7,2074.6,0.14235725]
[1742801004860,7.81997,2074.7,2074.4,0.8021]
[1742801005059,7.81997,2074.7,2074.6,0.14235725]
[1742801005359,7.81997,2074.7,2074.4,0.8021]
[1742801005560,7.81997,2074.7,2074.6,0.14235725]
[1742801005760,3.0,2074.7,2074.4,5.62271]
[1742801005962,3.0,2074.7,2074.6,0.14235725]
[1742801006126,7.81998,2074.7,2074.4,0.8021]
[1742801006331,7.81998,2074.7,2074.6,0.14235725]
[1742801006532,7.82008,2074.7,2074.4,0.8021]
[1742801006765,7.82008,2074.7,2074.6,0.14235725]
[1742801006976,7.82008,2074.7,2074.4,0.8021]
[1742801007144,7.82008,2074.7,2074.6,0.14235725]
[1742801007656,7.82008,2074.7,2074.4,0.8021]
[1742801007858,7.82008,2074.7,2074.6,0.14235725]
[1742801008063,9.629327,2074.7,2074.3,4.82074]
[1742801008263,7.82008,2074.7,2074.6,0.14235725]
[1742801008562,7.82008,2074.7,2074.3,4.82074]
[1742801008763,7.82008,2074.7,2074.6,0.14235725]
[1742801008933,7.82008,2074.7,2074.3,4.82074]
[1742801009133,7.82008,2074.7,2074.6,0.14235725]
[1742801009760,7.82008,2074.7,2074.3,4.82074]
[1742801009961,7.82008,2074.7,2074.6,0.14235725]
[1742801010161,7.82008,2074.7,2074.3,4.82074]
[1742801010666,7.82008,2074.7,2074.4,0.14235725]
[1742801011160,4.82043,2074.5,2074.4,0.14235725]
[1742801011657,4.82096,2074.3,2073.9,5.6238]
[1742801012232,4.82117,2074.2,2073.9,5.6238]
[1742801012633,9.50268,2074.4,2073.9,0.8021]
[1742801012833,9.50268,2074.4,2074.0,9.64292]
[1742801013035,14.3235,2074.4,2074.0,4.82142]
[1742801013462,4.8209,2074.3,2073.9,5.62386]
[1742801013630,4.8209,2074.3,2073.9,6.72343]
[1742801013836,9.64201,2074.3,2073.9,6.72343]
[1742801014035,9.64201,2074.3,2073.9,0.8021]
[1742801014036,4.8212,2074.2,2073.9,0.8021]
[1742801014351,4.82138,2074.1,2073.9,0.8021]
[1742801014537,4.82138,2074.1,2073.7,4.82216]
[1742801014738,4.82138,2074.1,2073.7,5.62426]
[1742801015546,4.82138,2074.1,2073.8,4.82201]
[1742801015970,4.82138,2074.1,2073.9,0.14365716]
[1742801016760,4.82138,2074.1,2073.7,5.62426]
[1742801016962,4.82138,2074.1,2074.0,0.14365716]
[1742801017165,4.82138,2074.1,2073.7,5.62426]
[1742801017474,9.64294,2074.1,2073.7,5.62426]
[1742801017666,9.64294,2074.1,2073.8,0.14365716]
[1742801017867,4.82138,2074.1,2073.8,4.96571716]
[1742801018372,4.82138,2074.1,2073.8,0.05660033]
[1742801018560,10.684133,2074.1,2073.8,0.13640243]
[1742801019253,4.82161,2074.0,2073.8,0.13640243]
[1742801020471,4.82143,2074.1,2073.8,0.13640243]
[1742801020671,4.82115,2074.2,2073.8,0.13640243]
[1742801020974,4.82115,2074.2,2073.9,4.82181]
[1742801021344,4.82115,2074.2,2074.0,0.13905065]
[1742801021977,4.82136,2074.1,2074.0,0.13905065]
[1742801022277,4.82136,2074.1,2074.0,0.13876171]
[1742801022478,4.8212,2074.2,2073.8,4.82204]
[1742801022678,4.8212,2074.2,2074.0,0.13876171]
[1742801022850,4.8212,2074.2,2073.8,9.64396]
[1742801023050,4.8212,2074.2,2074.1,0.13842463]
[1742801023250,4.8212,2074.2,2073.8,4.82192]
[1742801023450,4.8212,2074.2,2074.1,0.13842463]
[1742801023663,4.8212,2074.2,2073.8,4.81392]
[1742801023958,4.8212,2074.2,2074.1,0.13842463]
[1742801024146,4.8212,2074.2,2073.8,9.63586]
[1742801024347,4.8212,2074.2,2074.1,0.13842463]
[1742801024883,4.8212,2074.2,2073.8,9.63586]
[1742801025071,4.8212,2074.2,2074.1,0.13842463]
[1742801025254,4.8212,2074.2,2073.8,9.63586]
[1742801025450,4.8212,2074.2,2074.1,0.13842463]
[1742801025667,5.65207,2074.5,2074.1,4.82116]
[1742801025668,3.8316,2074.5,2074.1,4.82116]
[1742801025873,4.82081,2074.4,2074.1,0.13842463]
[1742801026078,9.64169,2074.4,2074.1,0.13842463]
[1742801026250,4.82081,2074.4,2074.1,0.13842463]
[1742801028082,9.64168,2074.4,2074.1,0.13842463]
[1742801028879,4.82081,2074.4,2074.1,0.13842463]
[1742801029567,4.82081,2074.4,2074.1,4.95976463]
[1742801029779,7.82044,2074.5,2074.1,5.71806463]
[1742801029986,12.50144,2074.5,2074.1,6.69618709]
[1742801031354,12.50144,2074.5,2074.1,5.71806463]
[1742801031553,4.82044,2074.5,2074.1,10.53934463]
[1742801031755,7.681,2074.7,2074.4,0.7764]
[1742801032380,12.50114,2074.7,2074.5,0.13842463]
[1742801032581,17.32127,2074.7,2074.5,0.13842463]
[1742801032883,12.50113,2074.7,2074.6,0.13842463]
[1742801033187,17.3213,2074.7,2074.3,4.82083]
[1742801033386,12.50113,2074.7,2074.6,0.13683571]
[1742801033552,12.50113,2074.7,2074.3,4.82083]
[1742801033755,12.50113,2074.7,2074.6,0.13683571]
[1742801033987,12.50113,2074.7,2074.3,4.82083]
[1742801034357,12.50113,2074.7,2074.4,0.13683571]
[1742801034789,12.50113,2074.7,2074.3,4.82086]
[1742801035172,12.50113,2074.7,2074.4,0.13683571]
[1742801035471,4.82021,2074.6,2074.4,0.13683571]
[1742801035673,4.82021,2074.6,2074.2,6.1474]
[1742801035872,4.82043,2074.5,2074.0,5.59794]
[1742801036077,4.82043,2074.5,2074.1,4.82127]
[1742801036659,4.82043,2074.5,2074.1,9.64248]
[1742801036871,4.8202,2074.6,2074.1,5.863098]
[1742801037397,12.50098,2074.7,2074.3,5.59719]
[1742801037889,7.681,2074.7,2074.4,4.82056]
[1742801038089,3.0,2074.7,2074.5,4.82041]
[1742801038293,4.68,2074.8,2074.6,4.8202]
[1742801038586,4.68,2074.9,2074.6,0.7764]
[1742801039176,4.68,2074.9,2074.6,5.59655]
[1742801039573,4.68,2074.9,2074.6,10.41667]
[1742801039883,4.68,2074.9,2074.6,5.59652]
[1742801041885,4.81997,2074.7,2074.3,4.8209]
[1742801042593,4.81997,2074.7,2074.3,9.64163]
[1742801042792,4.81997,2074.7,2074.3,4.82073]
[1742801042995,4.81997,2074.7,2074.3,9.6415]
[1742801043199,4.81997,2074.7,2074.4,4.82066]
[1742801044002,4.81997,2074.7,2074.3,9.64152]
[1742801045202,4.81997,2074.7,2074.3,4.82073]
[1742801045704,4.81941,2075.0,2074.4,0.7764]
[1742801045908,7.81959,2074.9,2074.5,4.82024]
[1742801046090,4.81975,2074.8,2074.5,4.82024]
[1742801046295,7.81959,2074.9,2074.5,4.82024]
[1742801046296,7.81954,2074.9,2074.6,0.13442863]
[1742801047308,3.0,2074.9,2074.6,0.13442863]
[1742801047908,7.81951,2074.9,2074.6,0.13442863]
[1742801048703,12.6392,2074.9,2074.6,0.13442863]
[1742801049197,4.81975,2074.8,2074.6,0.13442863]
[1742801049512,4.81975,2074.8,2074.4,0.7764]
[1742801049716,4.81975,2074.8,2074.7,0.13240712]
[1742801049871,4.81975,2074.8,2074.4,5.59694]
[1742801050071,4.81975,2074.8,2074.7,0.13240712]
[1742801050272,4.81975,2074.8,2074.4,5.59694]
[1742801050505,4.81975,2074.8,2074.7,0.13240712]
[1742801050809,4.82008,2074.7,2074.3,4.82088]
[1742801050977,4.82025,2074.6,2074.2,5.60426]
[1742801051329,4.82044,2074.5,2074.2,0.7832]
[1742801051472,4.82044,2074.5,2074.1,4.82135]
[1742801051872,4.82044,2074.5,2074.1,9.64257]
[1742801052319,10.30545,2074.6,2074.2,4.82111]
[1742801054014,10.30545,2074.6,2074.2,4.82097]
[1742801055607,4.82045,2074.5,2074.2,4.82097]
[1742801055903,4.82044,2074.5,2074.0,0.7832]
[1742801056204,5.4852,2074.6,2074.1,4.82136]
[1742801056410,10.30546,2074.6,2074.2,4.82107]
[1742801056780,3.0,2074.7,2074.4,4.82051]
[1742801056980,7.678,2074.7,2074.4,4.82051]
[1742801058382,12.49798,2074.7,2074.4,4.82051]
[1742801059709,7.678,2074.7,2074.4,4.82051]
[1742801060911,7.678,2074.7,2074.5,0.13442855]
[1742801062885,12.49799,2074.7,2074.5,0.13442855]
[1742801065518,7.678,2074.7,2074.5,0.13442855]
[1742801067131,4.678,2074.7,2074.5,0.13442855]
[1742801069223,9.49798,2074.7,2074.5,0.13442855]
[1742801069603,9.49798,2074.7,2074.3,5.60404]
[1742801069949,9.49798,2074.7,2074.3,11.56548779]
[1742801070100,4.678,2074.7,2074.4,4.95399972]
[1742801072835,9.49797,2074.7,2074.4,4.95399972]
[1742801073015,10.26137,2074.7,2074.4,4.95399972]
[1742801073199,5.4414,2074.7,2074.4,4.95399972]
[1742801073404,4.678,2074.7,2074.4,4.95399972]
[1742801075440,4.73024322,2075.1,2074.4,1.08262489]
[1742801075745,4.677,2074.9,2074.6,5.61342]
[1742801076115,4.677,2074.9,2074.7,0.13336972]
[1742801077409,9.49654,2074.9,2074.7,0.13336972]
[1742801077821,9.49654,2074.9,2074.5,4.8204]
[1742801078024,9.49654,2074.9,2074.8,0.13336972]
[1742801078637,9.49654,2074.9,2074.2,5.37111]
[1742801078638,4.8199,2074.8,2074.3,4.82084]
[1742801078835,4.82,2074.7,2074.3,4.82084]
[1742801079029,9.64016,2074.7,2074.3,4.82084]
[1742801079232,4.82,2074.7,2074.3,9.64157]
[1742801079542,4.82,2074.7,2074.4,4.82066]
[1742801079728,1.22851872,2074.7,2074.4,4.82066]
[1742801080034,5.4935,2074.9,2074.6,4.82009]
[1742801080538,4.677,2074.9,2074.6,4.82009]
[1742801081837,26.654,2075.3,2074.7,0.8284]
[1742801082043,3.0,2075.2,2075.0,4.81922]
[1742801082534,3.0,2075.2,2074.8,4.81961]
[1742801082535,3.0,2075.2,2074.9,4.81945]
[1742801083118,7.81883,2075.2,2074.8,4.81956]
[1742801083643,3.0,2075.2,2074.9,4.81941]
[1742801084338,3.0,2075.2,2075.0,4.81925]
[1742801084637,3.0,2075.2,2074.9,4.81945]
[1742801085040,5.63417,2075.7,2075.3,4.81836]
[1742801085212,4.81821,2075.5,2075.1,4.81902]
[1742801085555,4.81821,2075.5,2075.1,9.63788]
[1742801086035,3.0,2075.5,2075.2,4.81879]
[1742801086244,4.81789,2075.6,2075.2,4.81879]
[1742801086444,3.0,2075.5,2075.2,4.81879]
[1742801086637,3.0,2075.5,2075.2,9.63751]
[1742801087011,7.81811,2075.5,2075.2,4.81872]
[1742801088841,3.0,2075.5,2075.2,4.81872]
[1742801089242,3.0,2075.5,2075.3,0.8284]
[1742801089446,9.49366,2075.7,2075.3,5.64693]
[1742801090623,4.81799,2075.6,2075.2,4.81879]
[1742801091163,4.81788,2075.6,2075.3,0.13024182]
[1742801091320,4.81788,2075.6,2075.2,4.81879]
[1742801091661,6.330684,2075.6,2075.4,0.13024182]
[1742801091858,6.330684,2075.6,2075.2,4.81879]
[1742801092015,6.330684,2075.6,2075.5,0.13024182]
[1742801092211,6.330684,2075.6,2075.2,4.81879]
[1742801092471,6.330684,2075.6,2075.5,0.13024182]
[1742801092617,4.81788,2075.6,2075.2,4.81879]
[1742801092819,4.81788,2075.6,2075.5,0.13024182]
[1742801093340,5.61792,2075.5,2075.1,4.81903]
[1742801094064,5.61792,2075.5,2075.1,4.81886]
[1742801094417,5.61792,2075.5,2075.0,4.81924]
[1742801094614,4.81851,2075.4,2075.0,4.81924]
[1742801095259,4.81869,2075.3,2074.9,10.44801]
[1742801095429,4.81869,2075.3,2074.9,5.6286]
[1742801095917,4.81869,2075.3,2074.9,10.44802]
[1742801096120,3.7997,2075.5,2075.0,0.55]
[1742801096345,3.7997,2075.5,2075.2,4.81879]
[1742801097284,3.0,2075.6,2075.3,4.81854]
[1742801097870,3.0,2075.6,2075.4,4.81832]
[1742801098237,10.2914,2075.7,2075.3,4.81842]
[1742801100182,9.4917,2075.7,2075.3,4.81841]
[1742801101242,4.81796,2075.6,2075.2,10.4469]
[1742801101447,4.81796,2075.6,2075.2,11.49159]
[1742801101650,4.81796,2075.6,2075.2,6.67279]
[1742801101947,4.81814,2075.5,2075.2,0.8093]
[1742801102943,5.61764,2075.6,2075.2,5.6281]
[1742801103144,5.61764,2075.6,2075.2,0.8093]
[1742801103345,4.8182,2075.5,2075.2,0.8093]
[1742801103686,4.8182,2075.5,2075.1,4.81899]
[1742801104604,4.8182,2075.5,2075.1,9.63786]
[1742801104782,5.6176,2075.6,2075.2,4.81871]
[1742801105285,5.6176,2075.6,2075.3,4.81856]
[1742801105599,4.8179,2075.6,2075.3,4.81856]
[1742801105896,4.8179,2075.6,2075.4,0.11389884]
[1742801106596,4.674,2075.7,2075.4,4.81818]
[1742801106897,4.674,2075.7,2075.5,0.11389884]
[1742801108980,4.8172,2075.9,2075.5,5.98310772]
[1742801109299,3.0,2075.8,2075.6,5.57966]
[1742801109671,3.0,2075.8,2075.7,0.11389884]
[1742801111972,32.29414,2076.2,2075.8,4.81721]
[1742801112295,4.81602,2076.4,2075.9,0.11337049]
[1742801112510,9.48902,2076.4,2076.0,0.7618]
[1742801112670,9.48902,2076.4,2076.1,0.11337049]
[1742801112868,4.81635,2076.3,2076.1,0.11337049]
[1742801113170,9.48902,2076.4,2076.1,0.11337049]
[1742801113374,15.12935,2076.5,2076.1,4.92997049]
[1742801113787,4.81607,2076.4,2076.1,4.92997049]
[1742801114281,4.81635,2076.3,2076.1,0.11337049]
[1742801115103,9.48789,2076.5,2076.1,4.92997049]
[1742801115275,9.48789,2076.5,2076.1,5.98082954]
[1742801115476,9.48789,2076.5,2076.1,10.79737954]
[1742801115685,9.48789,2076.5,2076.1,5.98077954]
[1742801118075,4.81606,2076.4,2076.1,1.16422954]
[1742801118291,4.81606,2076.4,2076.1,0.11337049]
[1742801120190,3.8256,2076.7,2076.2,0.55]
[1742801120395,3.8256,2076.7,2076.3,5.57801]
[1742801120593,7.81543,2076.7,2076.3,5.69075607]
[1742801120905,12.63096,2076.7,2076.3,0.87454607]
[1742801121112,4.81556,2076.6,2076.4,0.62409761]
[1742801121411,12.63084,2076.7,2076.5,0.11063324]
[1742801122180,12.63084,2076.7,2076.3,0.7618]
[1742801122181,4.81557,2076.6,2076.3,0.7618]
[1742801123306,7.81535,2076.7,2076.3,0.7618]
[1742801123515,7.81535,2076.7,2076.4,0.612827]
[1742801124926,9.4851,2076.8,2076.4,0.612827]
[1742801125103,4.8151,2076.8,2076.4,0.612827]
[1742801126014,4.81547,2076.7,2076.4,0.612827]
[1742801126200,4.81571,2076.6,2076.3,0.7618]
[1742801126700,4.81547,2076.7,2076.3,0.7618]
[1742801127000,9.63094,2076.7,2076.3,0.7618]
[1742801127201,4.81547,2076.7,2076.3,0.7618]
[1742801127713,4.81546,2076.7,2076.3,0.7618]
[1742801127915,4.81546,2076.7,2076.3,1.856282]
[1742801128215,9.63091,2076.7,2076.3,1.856282]
[1742801128417,4.81545,2076.7,2076.3,1.856282]
[1742801128786,4.81606,2076.4,2076.0,0.751]
[1742801129000,4.81606,2076.4,2076.0,5.56795]
[1742801131531,9.4858,2076.5,2076.0,5.56795]
[1742801132635,4.81603,2076.4,2076.0,5.56795]
[1742801132815,9.4858,2076.5,2076.0,6.661446]
[1742801134034,14.30171,2076.5,2076.0,6.661446]
[1742801134236,9.4858,2076.5,2076.0,6.661446]
[1742801135238,14.3017,2076.5,2076.0,6.661446]
[1742801135416,9.4858,2076.5,2076.0,6.661446]
[1742801135895,14.30172,2076.5,2076.0,6.661446]
[1742801136096,14.30172,2076.5,2076.1,0.10703233]
[1742801136489,14.3017,2076.5,2076.1,0.10703233]
[1742801136892,27.3831,2077.1,2076.3,0.8281]
[1742801137092,4.669,2077.1,2076.7,5.64326]
[1742801137574,3.0,2077.0,2076.8,0.10588043]
[1742801137999,3.0,2077.1,2076.8,4.92083043]
[1742801138315,3.0,2077.1,2076.8,0.10588043]
[1742801138905,3.0,2077.1,2076.8,4.92096043]
[1742801139223,3.0,2077.1,2076.8,4.92095043]
[1742801141228,3.0,2077.1,2076.8,0.10588043]
[1742801141461,4.81477,2077.0,2076.7,0.8281]
[1742801141828,4.81477,2077.0,2076.8,0.10429701]
[1742801143129,9.137857,2077.1,2076.8,0.10429701]
[1742801143760,13.952477,2077.1,2076.8,0.10429701]
[1742801144257,4.81467,2077.0,2076.8,0.10429701]
[1742801144856,9.137857,2077.1,2076.8,0.10429701]
[1742801145079,4.81442,2077.1,2076.8,0.10429701]
[1742801145359,3.0,2077.2,2076.8,4.91924701]
[1742801145561,3.0,2077.2,2076.9,4.81485]
[1742801146060,3.0,2077.2,2077.0,0.8281]
[1742801146847,3.0,2077.2,2077.1,0.10085151]
[1742801147032,7.81417,2077.2,2077.1,0.10085151]
[1742801147462,7.81397,2077.3,2077.1,0.10085151]
[1742801148267,10.23267,2077.5,2077.1,0.10085151]
[1742801148439,3.0,2077.4,2077.1,0.10085151]
[1742801148640,7.81379,2077.4,2077.1,0.10085151]
[1742801148964,4.81395,2077.3,2077.1,0.10085151]
[1742801149939,8.56627,2077.2,2077.1,0.10085151]